Workbook

Sheet Proposed Pricing schedule
A1: RFB071/25/26 - PRICING SCHEDULE - ANNEXURE B
A2: Bidders must provide the NHLS with costing information for a 5 years’ contract duration. The bid price quoted must be inclusive as per the scope of work.
A3: Terms and Conditions of pricing are as follows:
A4: a) Bidder must complete the pricing as per tables below.
A5: b) Prices must be provided in South African Rand (R).
A6: c) Line Prices are all VAT EXCLUSIVE and TOTAL PRICE is VAT INCLUSIVE.
A7: d) Bidder to ensure that the Prices listed below are included on the Total Declared Price.
A8: e) Bidders who fail to price according to the costing template provided will be disqualified.
A10: PRICING SCHEDULE SECTION A: Outright Purchase of Building Management System/Environmental Monitoring System (EMS)
A12: Item Description | B12: Unit of Measure | C12: Quantity | D12: Cost VAT excl.
A13: Outright Purchase of Building Management System/Environmental Moninoring System (EMS) | B13: Each | C13: 1 | D13: 0
A14: Programming | B14: Each | C14: 1 | D14: 0
C15: Subtotal (VAT Excl.) | D15: =D13+D14 -> R0.00
C16: VAT (15%) | D16: =D14*0.15 -> R0.00
C17: Subtotal (VAT Incl.) | D17: =D15+D16 -> R0.00
A21: SECTION B:
A22: Pricing Schedule B1. Service and Maintenance
A23: Item Description | C23: Number of Services and Maintenance per Year | D23: Unit Rate | E23: Total Cost | F23: Estimated Quantity Year 2 | G23: Unit Rate | H23: Total Cost | I23: Estimated Quantity Year 3 | J23: Unit Rate | K23: Total Cost | L23: Estimated Quantity Year 4 | M23: Unit Rate | N23: Total Cost | O23: Estimated Quantity Year 5 | P23: Unit Rate | Q23: Total Cost | R23: Total Annual Cost
D24: in | E24: Year 1 | G24: in | H24: Year 2 | J24: in | K24: Year 3 | M24: in | N24: Year 4 | P24: Year 5 | Q24: Year 5 | R24: Year 1 - 5
B25: Unit of measure | D25: Year 1 | E25: (VAT Excl.) | G25: Year 2 | H25: (VAT Excl.) | J25: Year 3 | K25: (VAT Excl.) | M25: Year 4 | N25: (VAT Excl.) | P25: in | Q25: (VAT Excl.) | R25: (VAT Excl.)
D26: (VAT Excl.) | G26: (VAT Excl.) | J26: (VAT Excl.) | M26: (VAT Excl.) | P26: (VAT Excl.)
A27: Preventative Maintenance | B27: Per Maintenance | E27: =D27*12 -> R0.00 | H27: =G27*12 -> R0.00 | K27: =J27*12 -> R0.00 | N27: =M27*12 -> R0.00 | Q27: =P27*12 -> R0.00 | R27: =E27+H27+K27+N27+Q27 -> R0.00
A28: Service | B28: Per service | E28: =D28*12 -> R0.00 | H28: =G28*12 -> R0.00 | K28: =J28*12 -> R0.00 | N28: =M28*12 -> R0.00 | Q28: =P28*12 -> R0.00 | R28: =E28+H28+K28+N28+Q28 -> R0.00
Q29: Subtotal (VAT Excl.) | R29: =R27+R28 -> R0.00
Q30: VAT (15%) | R30: =R29*15 -> R0.00
Q31: Subtotal (VAT Incl.) | R31: =R29+R30 -> R0.00
A35: Pricing Schedule B2: Calibrators (List of all calibrators)
A36: Item Description | C36: Estimated Quantity Year 1 | D36: Unit Rate | E36: Total Cost | F36: Estimated Quantity Year 2 | G36: Unit Rate | H36: Total Cost | I36: Estimated Quantity Year 3 | J36: Unit Rate | K36: Total Cost | L36: Estimated Quantity Year 4 | M36: Unit Rate | N36: Total Cost | O36: Estimated Quantity Year 5 | P36: Unit Rate | Q36: Total Cost | R36: Total Annual Cost
D37: in | E37: Year 1 | G37: in | H37: Year 2 | J37: in | K37: Year 3 | M37: in | N37: Year 4 | P37: Year 5 | Q37: Year 5 | R37: Year 1 - 5
B38: Unit of measure | D38: Year 1 | E38: (VAT Excl.) | G38: Year 2 | H38: (VAT Excl.) | J38: Year 3 | K38: (VAT Excl.) | M38: Year 4 | N38: (VAT Excl.) | P38: in | Q38: (VAT Excl.) | R38: (VAT Excl.)
D39: (VAT Excl.) | G39: (VAT Excl.) | J39: (VAT Excl.) | M39: (VAT Excl.) | P39: (VAT Excl.)
B40: Each | E40: =C40*D40 -> R0.00 | H40: =F40*G40 -> R0.00 | K40: =I40*J40 -> R0.00 | N40: =L40*M40 -> R0.00 | Q40: =O40*P40 -> R0.00 | R40: =E40+H40+K40+N40+Q40 -> R0.00
B41: Each | E41: =C41*D41 -> R0.00 | H41: =F41*G41 -> R0.00 | K41: =I41*J41 -> R0.00 | N41: =L41*M41 -> R0.00 | Q41: =O41*P41 -> R0.00 | R41: =E41+H41+K41+N41+Q41 -> R0.00
B42: Each | E42: =C42*D42 -> R0.00 | H42: R0.00 | K42: R0.00 | N42: R0.00 | Q42: R0.00 | R42: R0.00
Q43: Subtotal (VAT Excl.) | R43: =R40+R41+R42 -> R0.00
Q44: VAT (15%) | R44: =R43*0.15 -> R0.00
Q45: Subtotal (VAT Incl.) | R45: =R43+R44 -> R0.00
A49: SECTION C: TRAINING AND APPLICATION SUPPORT
A50: Item Description | C50: Estimated Officials Year 1 | D50: Unit Rate | E50: Total Cost | F50: Estimated OfficialsYear 2 | G50: Unit Rate | H50: Total Cost | I50: Estimated OfficialsYear 3 | J50: Unit Rate | K50: Total Cost | L50: Estimated Officials Year 4 | M50: Unit Rate | N50: Total Cost | O50: Estimated Officials Year 5 | P50: Unit Rate | Q50: Total Cost | R50: Total Annual Cost
D51: in | E51: Year 1 | G51: in | H51: Year 2 | J51: in | K51: Year 3 | M51: in | N51: Year 4 | P51: Year 5 | Q51: Year 5 | R51: Year 1 - 5
B52: Unit of measure | D52: Year 1 | E52: (VAT Excl.) | G52: Year 2 | H52: (VAT Excl.) | J52: Year 3 | K52: (VAT Excl.) | M52: Year 4 | N52: (VAT Excl.) | P52: in | Q52: (VAT Excl.) | R52: (VAT Excl.)
D53: (VAT Excl.) | G53: (VAT Excl.) | J53: (VAT Excl.) | M53: (VAT Excl.) | P53: (VAT Excl.)
A54: System operation, Data review and reporting | B54: Per delegate | C54: 6 | E54: =D54*12 -> R0.00 | H54: =G54*12 -> R0.00 | K54: =J54*12 -> R0.00 | N54: =M54*12 -> R0.00 | Q54: =P54*12 -> R0.00 | R54: =E53+H54+K54+N54+Q54 -> R0.00
A55: Administration and configuration | B55: Per delegate | C55: 6 | E55: =D55*12 -> R0.00 | H55: =G55*12 -> R0.00 | K55: =J55*12 -> R0.00 | N55: =M55*12 -> R0.00 | Q55: =P55*12 -> R0.00 | R55: =E54+H55+K55+N55+Q55 -> R0.00
Q56: Subtotal (VAT Excl.) | R56: =R54+R55 -> R0.00
Q57: VAT (15%) | R57: =R55*0.15 -> R0.00
Q58: Subtotal (VAT Incl.) | R58: =R56+R57 -> R0.00
A62: Summary of the pricing scehdule | I62: Bid Amounts
A63: Pricing Schedule A | B63: Outright Purchase of Building Management System/Environmental Moninoring System (EMS), Installation and Programming | I63: =D15 -> R0.00
A64: Pricing Schedule B1 | B64: Service and Maintenance | I64: =R29 -> R0.00
A65: Pricing Schedule B2 | B65: Calibration | I65: =R43 -> R0.00
A66: Pricing Schedule C | B66: Training | I66: =R56 -> R0.00
H67: Subtotal (VAT Excl.) | I67: =I63+I64+I65+I66 -> R0.00
H68: VAT (15%) | I68: =I67*0.15 -> R0.00
H69: Subtotal (VAT Incl.) | I69: =I67+I68 -> R0.00

Sheet Sheet2 (hidden)
A5: 974513 | B5: 81209 | C5: =+B5*12 -> 974508
E6: 17.69 | L6: 90.94 | M6: 938 | N6: =+M6*L6 -> 85301.72
E7: 10.88 | M7: 12
E8: 62.37 | M8: =+M6*M7 -> 11256
E9: =SUM(E6:E8) -> 90.94 | F9: 938 | G9: =+F9*E9 -> 85301.72 | H9: 12 | I9: =+G9*H9 -> 1023620.64 | M9: 5
G10: =+B5 -> 81209 | M10: =+M8*M9 -> 56280
G11: =+G10-G9 -> -4092.72 | H11: 12 | I11: =+G11*H11 -> -49112.64 | M11: =+M10*E9 -> 5118103.2 | N11: 5122360 | O11: =+N11-M11 -> 4256.8 | P11: =+O11/N11 -> 0.0008310232002
R12: =4092*2.5% -> 102.3
N13: 938 | R13: 4092
C14: 974513 | D14: 998876 | E14: =+D14-C14 -> 24363 | F14: =+E14/C14 -> 0.03 | N14: 60 | R14: =+R13+R12 -> 4194.3
N15: =+N14*N13 -> 56280 | O15: 56330
C16: 1023848 | D16: =+D14 -> 998876 | E16: =+D16-C16 -> -24972 | F16: =+E16/C16 -> (0.02) | N16: =+N15-O15 -> -50
K17: 2.50%
C18: 974513 | E18: =+C18 -> 974513 | G18: 81209 | J18: =+G18 -> 81209 | K18: =+J18*$K$17 -> 2030.225 | L18: =+K18+J18 -> 83239.225
B19: =+C18/C19-1 -> -2% | C19: 998876 | D19: =+C19/C18 -> 1.02500018 | F19: =+G18/G19-1 -> -2% | G19: 83240 | H19: =+G19/G18 -> 102.5% | J19: =+G19 -> 83240 | K19: =+J19*$K$17 -> 2081 | L19: =+K19+J19 -> 85321 | P19: 938 | Q19: 12 | R19: =+Q19*P19 -> 11256 | S19: 5 | T19: =+R19*S19 -> 56280
B20: =+C19/C20-1 -> -2% | C20: 1023848 | D20: =+C20/C19 -> 1.0250001 | F20: =+G19/G20-1 -> -2% | G20: 85321 | H20: =+G20/G19 -> 102.5% | J20: =+G20 -> 85321 | K20: =+J20*$K$17 -> 2133.025 | L20: =+K20+J20 -> 87454.025
B21: =+C20/C21-1 -> -2% | C21: 1049444 | D21: =+C21/C20 -> 1.024999805 | F21: =+G20/G21-1 -> -2% | G21: 87454 | H21: =+G21/G20 -> 102.5% | J21: =+G21 -> 87454 | K21: =+J21*$K$17 -> 2186.35 | L21: =+K21+J21 -> 89640.35
B22: =+C21/C22-1 -> -2% | C22: 1075680 | D22: =+C22/C21 -> 1.024999905 | F22: =+G21/G22-1 -> -2% | G22: 89640 | H22: =+G22/G21 -> 102.5% | J22: =+G22 -> 89640 | K22: =+J22*$K$17 -> 2241 | L22: =+K22+J22 -> 91881
C24: =+J18 -> 81209 | D24: =+C24/$E$9 -> 892.9953816
C25: =+J19 -> 83240 | D25: =+C25/$E$9 -> 915.3287882 | E25: =+D25/D24 -> 1.025009543
C26: =+J20 -> 85321 | D26: =+C26/$E$9 -> 938.2120079 | E26: =+D26/D25 -> 1.025
C27: =+J21 -> 87454 | D27: =+C27/$E$9 -> 961.6670332 | E27: =+D27/D26 -> 1.024999707
C28: =+J22 -> 89640 | D28: =+C28/$E$9 -> 985.7048603 | E28: =+D28/D27 -> 1.024995998
